bitfinex/quotes_ETHUSD_20251011
["timestamp","ask_amount","ask_price","bid_price","bid_amount"]
[1760147040585,7.06,3797.4,3795.8,2.46]
[1760147040586,7.06,3800.1,3797.9,0.99999999]
[1760147040786,7.06,3800.0,3797.4,0.99999999]
[1760147041005,7.06,3800.0,3798.0,0.99999999]
[1760147041207,0.33592196,3803.6,3798.6,0.99999999]
[1760147041514,0.33592196,3803.6,3798.1,0.99999999]
[1760147041815,0.33592196,3803.6,3797.6,0.99999999]
[1760147042018,0.33592196,3803.6,3795.8,3.69]
[1760147042187,0.33592196,3803.6,3798.4,0.99999999]
[1760147042529,0.33592196,3803.6,3799.0,0.99999999]
[1760147042695,0.33592196,3803.6,3799.4,0.99999999]
[1760147042883,0.59592196,3803.6,3799.7,0.99999999]
[1760147043104,0.59592196,3803.6,3795.8,4.92]
[1760147043308,0.59592196,3803.6,3798.2,0.99999999]
[1760147043612,0.110476,3803.5,3798.2,0.99999999]
[1760147043841,0.59558195,3803.4,3798.2,2.22999999]
[1760147043982,0.59558195,3803.4,3798.2,1.23]
[1760147044384,0.59558195,3803.4,3798.3,0.99999999]
[1760147044609,0.59558195,3803.4,3798.2,1.23]
[1760147044920,0.59511428,3802.6,3798.2,0.5441]
[1760147045216,0.59558195,3803.4,3798.2,1.7741]
[1760147046015,0.110476,3803.5,3798.2,1.7741]
[1760147046016,1.598,3803.1,3798.2,1.7741]
[1760147046216,0.110476,3803.5,3798.2,1.7741]
[1760147046217,0.00708195,3803.4,3798.2,1.7741]
[1760147046392,0.00708195,3803.4,3798.2,3.0041]
[1760147046808,0.00702196,3803.6,3798.2,3.0041]
[1760147047813,0.00702196,3803.6,3798.2,4.2341]
[1760147049405,0.00702196,3803.6,3798.2,5.4641]
[1760147050931,1.598,3803.2,3798.2,6.6941]
[1760147051132,1.598,3803.0,3798.2,6.6941]
[1760147051517,0.53669031,3803.1,3798.2,6.6941]
[1760147051518,1.86396572,3802.9,3798.2,6.6941]
[1760147052423,1.86396572,3802.9,3798.2,7.9241]
[1760147053006,0.172008,3803.5,3798.2,7.9241]
[1760147053007,0.26558195,3803.4,3798.2,7.9241]
[1760147053907,0.26765667,3802.8,3798.2,9.1541]
[1760147055254,0.26765667,3802.8,3798.2,10.3841]
[1760147056684,0.26765667,3802.8,3798.2,11.6141]
[1760147057072,0.001,3802.9,3798.2,11.6141]
[1760147057073,0.15511428,3802.6,3798.2,11.6141]
[1760147057258,0.15441819,3802.4,3798.2,11.6141]
[1760147057776,0.15441819,3802.4,3798.2,12.61409999]
[1760147057949,0.15441819,3802.4,3798.2,13.84409999]
[1760147058149,0.15441819,3802.4,3798.2,12.8441]
[1760147058582,0.15441819,3802.4,3798.2,13.84409999]
[1760147058760,0.15441819,3802.4,3798.2,12.8441]
[1760147059359,0.15441819,3802.4,3798.2,14.0741]
[1760147060779,1.598,3802.3,3798.2,15.3041]
[1760147060984,0.00703366,3802.2,3798.2,15.3041]
[1760147061154,0.00701819,3802.4,3798.2,15.3041]
[1760147062179,0.00701819,3802.4,3798.2,15.74255963]
[1760147062582,0.007014,3802.1,3798.2,15.4762467]
[1760147063381,1.598,3801.9,3798.2,15.4762467]
[1760147063686,1.3049939,3801.8,3798.2,16.7062467]
[1760147063872,1.36411531,3801.6,3798.2,16.7062467]
[1760147064289,1.320867,3801.4,3798.2,16.7062467]
[1760147064504,7.06,3801.3,3798.2,16.7062467]
[1760147064667,1.32984874,3801.2,3798.2,16.7062467]
[1760147064868,1.32984874,3801.2,3798.2,17.9362467]
[1760147065400,1.30922459,3801.0,3798.2,17.9362467]
[1760147065603,2.97686016,3800.8,3798.2,17.9362467]
[1760147065805,0.27886016,3800.8,3798.2,17.9362467]
[1760147066107,0.27886016,3800.8,3798.2,17.8862467]
[1760147066267,1.598,3800.5,3798.2,19.1162467]
[1760147066469,2.97749739,3800.0,3798.2,19.1162467]
[1760147066698,2.89964574,3799.8,3798.2,18.42655492]
[1760147066895,1.38819472,3799.0,3798.2,18.42655492]
[1760147067066,1.598,3798.3,3798.2,18.42655492]
[1760147067270,1.598,3798.3,3798.2,14.71587284]
[1760147067676,7.06,3798.3,3798.2,15.94587284]
[1760147067880,7.06,3799.1,3798.2,15.94587284]
[1760147068700,1.598,3799.0,3798.2,15.94587284]
[1760147068893,1.598,3798.8,3798.2,17.17587284]
[1760147069089,1.598,3798.6,3798.2,17.17587284]
[1760147070292,1.598,3798.6,3798.2,18.40587284]
[1760147070808,7.06,3798.7,3798.2,18.40587284]
[1760147071009,1.598,3800.6,3798.2,18.40587284]
[1760147071794,1.598,3800.6,3798.2,19.63587284]
[1760147071995,1.598,3800.5,3798.2,19.63587284]
[1760147072628,7.06,3801.0,3798.2,19.63587284]
[1760147072829,7.06709632,3802.0,3798.2,19.63587284]
[1760147072986,7.06,3801.9,3798.2,19.63587284]
[1760147073184,7.06,3801.9,3798.2,20.86587284]
[1760147073402,7.06,3801.8,3798.2,20.86587284]
[1760147073603,7.06,3801.7,3798.2,20.86587284]
[1760147073806,7.06,3801.6,3798.2,20.86587284]
[1760147074587,7.06,3801.6,3798.2,22.09587284]
[1760147075031,7.06,3802.0,3798.2,22.09587284]
[1760147075915,7.06,3802.0,3798.2,23.32587284]
[1760147077285,7.06,3802.0,3798.2,24.1746502]
[1760147077543,8.658,3802.0,3798.2,24.1746502]
[1760147077918,1.598,3801.8,3798.2,24.1746502]
[1760147078333,1.598,3801.8,3798.2,23.68144766]
[1760147078531,1.598,3801.6,3798.2,23.68144766]
[1760147078745,1.598,3801.4,3798.2,24.91144766]
[1760147079350,1.598,3801.2,3798.2,24.91144766]
[1760147079550,1.598,3801.0,3798.2,24.91144766]
[1760147079851,1.8644,3800.8,3798.2,24.91144766]
[1760147080053,1.8644,3800.8,3798.2,26.14144766]
[1760147080231,1.598,3800.6,3798.2,26.14144766]
[1760147080428,1.8644,3800.6,3798.2,26.14144766]
[1760147080727,1.598,3800.6,3798.2,26.14144766]
[1760147080928,1.598,3800.4,3798.2,26.14144766]
[1760147081151,1.598,3800.2,3798.2,26.14144766]
[1760147081653,1.598,3800.2,3798.2,27.37144766]
[1760147082960,1.598,3800.2,3798.2,28.60144766]
[1760147083459,1.598,3800.2,3798.2,27.64046032]
[1760147083622,8.658,3800.1,3798.2,27.64046032]
[1760147083824,7.06,3800.1,3798.2,27.64046032]
[1760147084245,1.598,3800.6,3798.2,25.49182277]
[1760147084838,1.598,3800.5,3798.2,25.49182277]
[1760147085830,0.00702237,3801.3,3798.2,25.49182277]
[1760147086151,0.00702237,3801.3,3798.2,26.41782277]
[1760147087260,1.8644,3801.1,3798.2,26.41782277]
[1760147087944,0.00702237,3801.3,3798.2,26.41782277]
[1760147087945,0.2664,3800.6,3798.2,26.41782277]
[1760147088144,1.8644,3800.1,3798.2,26.41782277]
[1760147088549,1.8644,3799.5,3798.2,26.41782277]
[1760147088746,0.2664,3798.9,3798.2,26.41782277]
[1760147089058,1.8644,3798.3,3798.2,26.41782277]
[1760147089258,1.598,3798.6,3798.2,26.41782277]
[1760147089648,0.001,3802.0,3798.2,26.41782277]
[1760147089833,0.99999999,3801.2,3798.2,26.41782277]
[1760147090256,0.001,3802.0,3798.2,26.41782277]
[1760147090462,1.8644,3801.1,3798.2,26.41782277]
[1760147091369,0.001,3802.0,3798.2,26.41782277]
[1760147091370,1.8644,3800.9,3798.2,26.41782277]
[1760147091534,0.2664,3799.5,3798.2,26.41782277]
[1760147091734,1.598,3798.6,3798.2,26.41782277]
[1760147092161,1.8644,3798.3,3798.2,26.41782277]
[1760147092559,1.598,3798.3,3798.2,26.41782277]
[1760147093042,1.598,3798.6,3798.2,26.41782277]
[1760147093239,1.598,3798.3,3798.2,26.41782277]
[1760147093654,8.658,3798.3,3798.2,26.41782277]
[1760147096563,7.06,3798.3,3798.2,26.41782277]
[1760147096764,1.598,3799.5,3798.2,26.41782277]
[1760147096936,1.598,3799.3,3798.2,26.41782277]
[1760147097134,1.598,3799.1,3798.2,25.94139641]
[1760147097347,1.38443818,3799.6,3798.2,25.11232857]
[1760147097348,1.598,3798.9,3798.2,25.11232857]
[1760147098780,7.73,3798.8,3798.2,25.11232857]
[1760147099263,0.00086649,3798.6,3798.2,23.07141217]
[1760147099434,7.06,3798.5,3798.2,23.07141217]
[1760147100490,8.658,3798.5,3798.2,22.38511217]
[1760147100702,1.598,3798.3,3798.2,22.38511217]
[1760147101003,1.598,3798.3,3798.2,21.97308749]
[1760147101168,8.658,3798.3,3798.2,21.97308749]
[1760147101493,8.658,3798.3,3798.2,21.55583056]
[1760147101902,8.658,3798.3,3798.2,21.55496407]
[1760147102701,7.06,3798.3,3798.2,21.55496407]
[1760147102900,7.06,3798.5,3798.2,21.55496407]
[1760147103460,7.06,3798.5,3798.2,20.86537176]
[1760147104265,7.06,3798.5,3798.2,16.67645616]
[1760147104480,7.06,3798.4,3798.2,16.67645616]
[1760147104786,7.06,3798.3,3798.2,15.29439683]
[1760147105197,1.598,3801.6,3798.2,15.29439683]
[1760147105395,1.598,3801.4,3798.2,15.29439683]
[1760147105698,0.001,3802.8,3798.2,15.29439683]
[1760147105699,7.06,3801.3,3798.2,15.29439683]
[1760147105875,7.06,3801.2,3798.2,15.29439683]
[1760147106058,0.001,3798.5,3798.2,15.29439683]
[1760147106266,7.06,3798.4,3798.2,15.29439683]
[1760147108319,7.06,3798.4,3798.2,13.65703557]
[1760147113226,7.06,3798.4,3798.2,12.08954946]
[1760147114324,7.06,3798.4,3795.1,0.99999999]
[1760147114325,5.48445054,3795.8,3795.1,0.99999999]
[1760147114620,12.54445054,3795.8,3794.9,0.99999999]
[1760147115120,12.54445054,3795.8,3795.2,0.99999999]
[1760147115331,7.06,3795.8,3795.2,0.99999999]
[1760147115538,7.06,3795.8,3790.9,0.6802]
[1760147115727,7.06,3796.5,3790.9,0.463]
[1760147115924,7.06,3798.4,3794.0,0.99999999]
[1760147116126,7.06,3798.4,3793.7,0.99999999]
[1760147116330,21.266,3795.0,3793.9,0.99999999]
[1760147116503,21.266,3795.0,3794.1,0.99999999]
[1760147116698,21.266,3795.0,3794.9,0.99999999]
[1760147117316,21.266,3795.0,3792.2,0.463]
[1760147117317,22.5,3796.7,3791.7,3.69]
[1760147117515,7.06,3796.6,3791.7,3.69]
[1760147118318,22.5,3794.9,3791.7,3.29692767]
[1760147118512,22.5,3794.9,3791.8,0.76]
[1760147118513,7.06,3794.8,3791.8,0.76]
[1760147118917,7.06,3794.8,3793.3,0.99999999]
[1760147119338,22.5,3794.3,3793.5,0.99999999]
[1760147119641,22.5,3794.3,3794.2,0.99999999]
[1760147120311,22.5,3795.9,3794.4,0.99999999]
[1760147120512,7.06,3795.8,3794.4,0.99999999]
[1760147120717,7.06,3795.8,3794.8,0.99999999]
[1760147120912,7.06,3795.8,3791.8,0.76]
[1760147121452,22.5,3795.8,3794.9,0.99999999]
[1760147121638,22.5,3795.8,3795.3,0.99999999]
[1760147122008,22.5,3795.8,3791.8,0.76]
[1760147122212,7.06,3795.7,3791.8,0.76]
[1760147122506,22.5,3795.4,3794.5,0.99999999]
[1760147123091,7.06,3795.3,3791.8,0.76]
[1760147123362,22.5,3794.6,3793.6,0.99999999]
[1760147123540,29.56,3794.6,3793.6,0.99999999]
[1760147124427,7.06,3794.6,3793.6,0.99999999]
[1760147124629,7.06,3794.6,3793.3,0.99999999]
[1760147124855,7.06,3794.6,3793.6,0.99999999]
[1760147125365,7.06,3794.6,3793.9,0.99999999]
[1760147125540,7.06,3794.6,3793.5,0.99999999]
[1760147125743,7.06,3794.6,3793.9,0.99999999]
[1760147126070,22.5,3794.7,3794.5,0.99999999]
[1760147126071,29.56,3794.7,3794.5,0.99999999]
[1760147126236,7.06,3794.7,3794.5,0.99999999]
[1760147126572,7.06,3798.3,3796.4,0.99999999]
[1760147126757,29.561,3798.4,3796.9,0.99999999]
[1760147126968,29.561,3798.4,3797.8,0.99999999]
[1760147127258,7.061,3798.4,3797.9,0.99999999]
[1760147127557,7.061,3798.4,3797.2,0.99999999]
[1760147127761,7.061,3798.4,3796.8,0.99999999]
[1760147127970,7.061,3798.4,3797.6,0.99999999]
[1760147128125,7.061,3798.4,3796.7,0.99999999]
[1760147128336,0.1312,3796.7,3796.3,0.99999999]
[1760147128564,7.061,3798.4,3796.3,0.99999999]
[1760147128765,0.1312,3796.3,3796.2,0.99999999]
[1760147129072,7.061,3798.4,3794.7,0.99999999]
[1760147129234,22.5,3797.7,3795.4,0.99999999]
[1760147129432,22.5,3797.7,3795.2,0.99999999]
[1760147129854,22.5,3797.7,3795.0,0.99999999]
[1760147130053,22.5,3797.7,3794.9,0.99999999]
[1760147130253,7.061,3798.4,3796.4,0.99999999]
[1760147130495,7.061,3798.4,3795.5,0.99999999]
[1760147130708,7.061,3798.4,3796.3,0.99999999]
[1760147131003,7.061,3798.4,3796.5,0.99999999]
[1760147131184,7.061,3798.4,3796.9,0.99999999]
[1760147131587,7.061,3798.4,3797.2,0.99999999]
[1760147131800,7.061,3798.4,3797.7,0.99999999]
[1760147132671,7.061,3798.4,3797.8,0.99999999]
[1760147132866,7.061,3798.4,3795.0,0.76]
[1760147133304,22.5,3797.4,3795.0,0.76]
[1760147133505,7.06,3797.3,3795.0,0.76]
[1760147133808,1.38441673,3797.2,3795.0,0.76]
[1760147134151,7.06,3797.1,3795.0,0.76]
[1760147134332,22.5,3796.5,3795.0,0.76]
[1760147134622,7.06,3796.4,3795.0,0.76]
[1760147135509,21.07428344,3796.2,3795.0,0.76]
[1760147135702,7.06,3796.1,3795.0,0.76]
[1760147136286,7.06,3796.2,3795.0,0.76]
[1760147137704,22.5,3796.7,3795.1,0.93126255]
[1760147138000,22.5,3796.7,3793.0,0.002]
[1760147138202,22.5,3796.7,3793.1,0.02636366]
[1760147138401,7.06,3797.0,3795.1,0.93126255]
[1760147138604,7.06,3797.3,3795.3,0.93126255]
[1760147138802,29.56,3797.4,3795.5,0.93126255]
[1760147138985,29.56,3797.4,3796.2,0.93126255]
[1760147139307,7.06,3797.4,3797.0,0.93126255]
[1760147139503,7.061,3798.4,3797.0,0.93126255]
[1760147139714,7.061,3798.4,3797.3,0.93126255]
[1760147141009,7.061,3798.4,3797.4,0.0263338]
[1760147141308,7.061,3798.4,3796.1,0.10315594]
[1760147142225,0.001,3796.7,3796.6,0.10315594]
[1760147143012,0.001,3796.7,3796.0,0.10315594]
[1760147143214,0.001,3796.7,3796.3,0.10315594]
[1760147143379,0.001,3796.7,3794.9,0.10315594]
[1760147143584,0.001,3796.7,3794.5,0.002]
[1760147143783,0.001,3796.7,3795.4,0.10315594]
[1760147143985,0.001,3796.7,3794.8,0.10315594]
[1760147145308,0.001,3796.7,3794.5,0.002]
[1760147145488,0.001,3796.7,3795.4,0.10315594]
[1760147146284,0.001,3796.7,3795.5,0.02634698]
[1760147146616,0.001,3796.7,3795.7,0.10315594]
[1760147146920,0.001,3796.7,3796.0,0.10315594]
[1760147147094,0.001,3796.7,3796.6,0.10315594]
[1760147148307,0.001,3796.7,3796.6,0.12949529]
[1760147148514,0.001,3796.7,3795.2,0.657]
[1760147148839,0.001,3796.7,3794.5,0.4405]
[1760147149010,0.001,3796.7,3795.1,0.10315594]
[1760147149182,0.001,3796.7,3795.3,0.10315594]
[1760147149392,0.001,3796.7,3794.5,0.002]
[1760147149619,0.001,3796.7,3794.7,0.10315594]
[1760147150093,0.001,3796.7,3794.5,0.002]
[1760147151397,0.001,3796.7,3794.7,0.10315594]
[1760147151722,0.001,3796.7,3794.5,0.002]
[1760147153211,22.5,3796.6,3794.5,0.002]
[1760147153619,7.06,3796.5,3794.5,0.002]
[1760147154316,22.5,3795.8,3794.5,0.002]
[1760147154516,7.06,3795.7,3794.5,0.002]
[1760147155305,22.5,3795.2,3794.5,0.002]
[1760147156316,29.56,3795.7,3794.5,0.002]
[1760147158321,7.06,3795.7,3794.5,0.002]
[1760147159023,7.06,3796.0,3794.5,0.002]
[1760147161199,7.06,3796.0,3794.5,0.02835393]
[1760147161398,7.06,3796.6,3794.5,0.02835393]
[1760147161898,7.06,3796.6,3794.5,0.002]
[1760147162097,7.061,3796.7,3794.6,0.02635323]
[1760147162325,7.061,3796.7,3794.6,0.10315594]
[1760147162531,7.061,3796.7,3794.5,0.002]
[1760147163302,7.061,3796.7,3794.6,0.02635323]
[1760147163930,7.061,3796.7,3794.5,0.002]
[1760147164428,22.5,3795.8,3794.5,0.002]
[1760147164732,7.06,3795.7,3794.5,0.002]
[1760147165310,29.56,3795.7,3794.5,0.002]
[1760147165834,22.5,3795.7,3794.5,0.002]
[1760147166006,22.5,3795.7,3794.6,0.02393643]
[1760147166235,0.001,3796.7,3795.0,0.10315594]
[1760147166820,7.06,3796.6,3794.5,0.002]
[1760147167631,0.45275291,3796.5,3794.5,0.002]
[1760147168131,7.06,3796.6,3794.6,0.02635323]
[1760147168338,7.06,3796.6,3794.5,0.002]
[1760147168523,7.061,3796.7,3794.7,0.02635254]
[1760147168724,7.061,3796.7,3794.8,0.10315594]
[1760147168926,7.061,3796.7,3795.1,0.10315594]
[1760147169315,7.061,3796.7,3794.5,0.002]
[1760147170038,7.061,3796.7,3795.1,0.10315594]
[1760147170637,7.061,3796.7,3795.2,0.02634906]
[1760147170834,7.061,3796.7,3795.2,0.4499]
[1760147171208,7.061,3796.7,3795.8,0.10315594]
[1760147171637,7.061,3796.7,3794.9,0.10315594]
[1760147171840,7.061,3796.7,3795.1,0.10315594]
[1760147172038,7.061,3796.7,3795.5,0.10315594]
[1760147172240,7.061,3796.7,3795.6,0.02634629]
[1760147172448,7.061,3796.7,3795.3,0.10315594]
[1760147172626,7.061,3796.7,3795.5,0.10315594]
[1760147172822,7.061,3796.7,3795.0,0.10315594]
[1760147173029,7.061,3796.7,3794.5,0.002]
[1760147173367,0.6453,3796.6,3794.7,0.10315594]
[1760147173545,0.6453,3796.6,3795.0,0.10315594]
[1760147173721,0.4732,3796.6,3795.1,0.02634976]
[1760147174049,7.061,3796.7,3796.3,0.10315594]
[1760147174448,0.0997,3796.6,3794.9,0.10315594]
[1760147175366,0.0997,3796.6,3793.7,0.4499]
[1760147175657,0.0997,3796.5,3793.7,0.4499]
[1760147175848,0.0997,3796.4,3794.0,0.10315594]
[1760147176163,0.0997,3796.4,3793.0,0.4499]
[1760147176455,0.4732,3796.3,3791.7,2.80680635]
[1760147176628,0.4732,3796.2,3791.7,2.80680635]
[1760147176836,7.5332,3796.1,3792.5,0.10315594]
[1760147177248,7.5332,3796.1,3793.0,0.10315594]
[1760147177441,7.5332,3796.1,3792.5,0.10315594]
[1760147177637,7.5332,3796.1,3792.4,0.10315594]
[1760147177928,0.02654771,3796.0,3792.0,0.10315594]
[1760147178244,22.5,3795.3,3791.7,2.80680635]
[1760147178442,7.5332,3795.2,3791.9,0.10315594]
[1760147178751,7.5332,3795.2,3793.0,0.10315594]
[1760147178953,7.5332,3795.2,3793.1,0.02636365]
[1760147179261,7.5332,3795.2,3791.7,2.80680635]
[1760147179262,7.5332,3795.2,3792.1,0.4499]
[1760147179463,7.5332,3795.2,3791.7,2.59451535]
[1760147179639,0.4732,3795.1,3793.3,0.002]
[1760147179978,0.4732,3795.1,3791.7,2.29819115]
[1760147180160,7.06,3795.2,3791.7,1.88537794]
[1760147180367,0.4732,3795.0,3791.7,1.88537794]
[1760147180531,0.4732,3794.9,3791.7,1.88537794]
[1760147180736,0.4732,3794.8,3791.7,1.88537794]
[1760147181060,0.4732,3794.7,3791.7,1.88537794]
[1760147181374,0.4732,3794.6,3791.7,1.88537794]
[1760147181578,7.06,3795.2,3791.7,1.88537794]
[1760147181579,0.4732,3794.5,3791.8,0.1933]
[1760147183039,0.1312,3791.8,3791.7,1.24945269]
[1760147183238,0.4732,3794.5,3791.7,1.24945269]
[1760147183776,0.4732,3795.1,3791.7,1.24945269]
[1760147183936,7.06,3795.2,3791.7,1.24945269]
[1760147184135,0.4732,3795.0,3791.7,1.24945269]
[1760147184374,0.4732,3794.9,3791.7,1.24945269]
[1760147184546,0.4732,3794.8,3791.7,1.24945269]
[1760147185470,7.06,3795.2,3791.7,1.24945269]
[1760147186284,0.4732,3795.1,3791.7,0.83310985]
[1760147186454,0.4732,3795.0,3791.7,0.4203796]
[1760147188811,7.06,3794.9,3791.7,0.4203796]
[1760147188966,0.4732,3794.8,3791.7,0.4203796]
[1760147189792,0.4732,3794.8,3790.0,0.06840031]
[1760147190173,7.06,3794.7,3790.0,0.06840031]
[1760147190367,0.4732,3794.6,3790.0,0.06840031]
[1760147191924,7.06,3794.7,3790.0,0.06840031]
[1760147192481,7.2774,3795.9,3790.0,0.06840031]
[1760147192764,7.06,3795.9,3790.0,0.06840031]
[1760147193620,7.061,3796.7,3790.0,0.06840031]
[1760147194701,7.061,3796.7,3782.6,8.61]
[1760147196295,7.061,3796.7,3782.6,9.99424981]
[1760147196498,7.061,3796.7,3782.6,8.61]
[1760147196703,7.061,3796.7,3790.0,0.002]
[1760147197383,7.535,3796.7,3790.0,0.002]
[1760147203211,7.061,3796.7,3790.0,0.002]
[1760147203379,7.535,3796.7,3790.0,0.002]
[1760147204313,7.061,3796.7,3790.0,0.002]
[1760147208915,0.474,3796.6,3790.0,0.002]
[1760147209812,7.061,3796.7,3790.0,0.002]
[1760147210322,7.5016,3796.7,3790.0,0.002]
[1760147213324,7.5016,3796.7,3789.4,5.74097315]
[1760147213490,7.061,3796.7,3789.4,5.74097315]
[1760147213890,7.061,3796.7,3789.4,5.60230403]
[1760147214092,0.13866912,3796.6,3789.4,5.48658114]
[1760147214293,7.061,3796.7,3789.4,5.48658114]
[1760147215096,0.13863496,3796.6,3789.4,5.48658114]
[1760147216290,0.13863496,3796.6,3789.4,5.07347503]
[1760147217128,7.061,3796.7,3789.4,4.80219249]
[1760147218224,0.13862015,3796.6,3789.4,4.80219249]
[1760147219326,0.13862015,3796.6,3789.4,4.38908645]
[1760147220129,7.061,3796.7,3789.4,4.11183727]
[1760147221230,0.13861982,3796.6,3789.4,4.11183727]
[1760147223104,7.061,3796.7,3789.4,3.97321313]
[1760147223631,0.001,3796.7,3789.4,3.97321313]
[1760147224243,0.13859786,3796.6,3789.4,3.97321313]
[1760147226263,0.001,3796.7,3789.4,3.83464472]
[1760147227174,0.13856545,3796.6,3789.4,3.83464472]
[1760147229051,0.13856545,3796.6,3789.4,3.69605605]
[1760147229361,0.001,3796.7,3789.4,3.69605605]
[1760147230263,0.13858582,3796.6,3789.4,3.69605605]
[1760147231859,0.13858582,3796.6,3789.4,3.69805605]
[1760147232064,0.13958582,3796.6,3789.4,3.55950045]
[1760147232262,0.13958582,3796.6,3789.4,3.42094485]
[1760147233763,0.001,3796.6,3789.4,3.42094485]
[1760147235240,0.001,3796.6,3789.5,0.18394694]
[1760147236161,0.001,3796.6,3789.5,0.48394694]
[1760147236767,0.001,3796.6,3789.4,3.1438853]
[1760147237337,0.001,3796.6,3789.7,22.5]
[1760147238164,0.001,3796.6,3789.7,22.36154834]
[1760147238365,0.001,3796.6,3790.1,22.5]
[1760147239235,0.001,3796.6,3790.9,22.5]
[1760147240396,0.1312,3790.9,3790.7,22.5]
[1760147240600,0.001,3796.6,3790.7,22.5]
[1760147241193,0.001,3796.6,3790.7,22.36153149]
[1760147241366,0.001,3796.6,3791.9,22.5]
[1760147242078,0.0070293,3799.4,3791.9,22.5]
[1760147242297,0.2352,3813.8,3791.9,22.5]
[1760147242463,0.00585981,3811.9,3795.7,22.5]
[1760147243512,0.00585981,3811.9,3798.2,22.5]
[1760147244015,0.13833871,3801.9,3798.2,22.5]
[1760147244173,0.61609235,3811.2,3798.2,22.36164601]
[1760147244386,0.61609235,3811.2,3797.4,22.5]
[1760147244588,0.13836453,3801.8,3797.4,22.5]
[1760147245412,0.13836453,3801.8,3797.2,22.5]
[1760147246336,0.13836453,3801.8,3796.0,22.5]
[1760147247102,0.13836453,3801.8,3789.4,3.1438853]
[1760147247419,0.13836453,3801.8,3793.1,22.36156268]
[1760147248343,0.13836453,3801.8,3789.4,3.1438853]
[1760147248344,0.13836453,3801.8,3791.4,15.79]
[1760147249301,0.13836453,3801.8,3790.2,22.5]
[1760147250070,0.13836453,3801.8,3790.2,21.67191653]
[1760147250234,0.13836453,3801.8,3790.3,22.5]
[1760147250858,0.13836453,3801.8,3790.9,0.002]
[1760147251033,0.13936453,3801.8,3790.9,0.002]
[1760147251228,0.13936453,3801.8,3791.3,22.5]
[1760147252054,0.13936453,3801.8,3791.3,22.49077464]
[1760147252259,0.13936453,3801.8,3790.9,0.002]
[1760147253330,0.13936453,3801.8,3792.4,22.36162962]
[1760147254266,0.13936453,3801.8,3791.5,22.5]
[1760147255331,0.13936453,3801.8,3790.9,0.002]
[1760147256353,0.13936453,3801.8,3790.8,22.36358396]
[1760147257337,0.13936453,3801.8,3790.5,0.002]
[1760147258177,0.13936453,3801.8,3790.1,21.67601724]
[1760147258355,0.13936453,3801.8,3789.4,3.1438853]
[1760147259238,0.13936453,3801.8,3789.5,22.5]
[1760147259461,0.13936453,3801.8,3789.5,22.36156162]
[1760147260165,0.13936453,3801.8,3789.5,22.22311926]
[1760147260375,0.13936453,3801.8,3789.4,3.1438853]
[1760147262082,0.13936453,3801.8,3789.4,2.31562724]
[1760147262386,0.13936453,3801.8,3789.4,2.17714833]
[1760147263394,0.99999999,3801.6,3789.4,2.17714833]
[1760147263680,0.13936453,3801.8,3789.4,2.17714833]
[1760147264892,0.99999999,3801.3,3789.4,2.17714833]
[1760147265074,0.99999999,3801.0,3789.4,2.17714833]
[1760147265277,0.99999999,3800.8,3789.4,2.17714833]
[1760147265788,0.13936453,3801.8,3789.4,2.17714833]
[1760147265991,0.99999999,3800.0,3789.4,2.17714833]
[1760147266288,0.99999999,3799.7,3789.4,2.17714833]
[1760147266667,0.99999999,3799.0,3789.4,2.17714833]
[1760147266854,0.99999999,3799.6,3789.4,2.17714833]
[1760147267055,0.99999999,3799.7,3789.4,1.62555871]
[1760147267256,0.99999999,3799.0,3789.4,1.20994753]
[1760147267490,0.99999999,3799.7,3789.4,1.20994753]
[1760147267687,0.99999999,3798.9,3789.4,1.20994753]
[1760147267885,0.99999999,3798.3,3789.4,1.20994753]
[1760147268592,0.99999999,3797.7,3789.4,1.20994753]
[1760147268791,0.4542,3799.4,3789.4,1.20994753]
[1760147269091,0.99999999,3798.8,3789.4,1.07139474]
[1760147269265,0.99999999,3798.4,3789.4,1.07139474]
[1760147269587,0.99999999,3798.8,3789.4,1.07139474]
[1760147269778,0.2359,3800.4,3789.4,1.07139474]
[1760147269779,0.99999999,3798.1,3789.4,1.07139474]
[1760147270100,0.99999999,3797.3,3789.4,1.07139474]
[1760147270390,0.99999999,3798.0,3789.4,1.07139474]
[1760147270594,0.99999999,3797.4,3788.6,0.79585531]
[1760147270964,0.99999999,3798.0,3788.6,0.79585531]
[1760147271178,0.99999999,3797.4,3788.6,0.79585531]
[1760147271381,0.99999999,3797.9,3788.6,0.79585531]
[1760147271570,0.2359,3800.4,3788.6,0.79585531]
[1760147271571,0.99999999,3798.0,3788.6,0.79585531]
[1760147271771,0.99999999,3797.3,3788.6,0.79585531]
[1760147272082,0.99999999,3798.0,3788.6,0.79585531]
[1760147272280,0.99999999,3797.3,3788.6,0.79585531]
[1760147272496,0.99999999,3796.7,3788.6,0.79585531]
[1760147272863,0.99999999,3797.0,3788.6,0.79585531]
[1760147273293,0.99999999,3798.0,3788.6,0.79585531]
[1760147273496,0.99999999,3797.0,3788.6,0.11288527]
[1760147273996,0.99999999,3796.6,3788.6,0.11288527]
[1760147274293,0.99999999,3796.3,3788.6,0.11288527]
[1760147274796,0.99999999,3796.0,3788.6,0.11288527]
[1760147275357,0.99999999,3796.2,3788.6,0.11288527]
[1760147275561,0.99999999,3796.1,3788.6,0.11288527]
[1760147275767,0.99999999,3796.5,3788.6,0.11288527]
[1760147275973,0.4709,3798.1,3788.6,0.11288527]
[1760147275974,0.99999999,3796.1,3788.6,0.11288527]
[1760147276604,0.99999999,3795.9,3788.6,0.11288527]
[1760147276974,0.2219,3798.5,3788.6,0.11288527]
[1760147276975,0.99999999,3795.6,3788.6,0.11288527]
[1760147277178,0.99999999,3795.6,3786.0,1.82929377]